[Event "Titled Tuesday Blitz September 28 2021"]
[White "Vusatiuk, Vladimir"]
[Black "Yakubbaeva, Nilufar"]
[WhiteFideId "14118610"]
[BlackFideId "14204487"]
[WhiteElo "2167"]
[BlackElo "1706"]
[Result "1/2-1/2"]
[Round "10"]
[TimeControl "180+1"]
[Date "2021.09.28"]
[WhiteClock "0:00:03"]
[BlackClock "0:00:04"]

1. d4 {[%clk 0:03:00]}  Nf6 {[%clk 0:02:59]} 2. c4 {[%clk 0:03:01]}  e6 {[%clk 0:02:58]} 3. Nc3 {[%clk 0:03:02]}  Bb4 {[%clk 0:02:57]} 4. e3 {[%clk 0:03:02]}  c5 {[%clk 0:02:56]} 5. Nf3 {[%clk 0:03:02]}  O-O {[%clk 0:02:56]} 6. Bd3 {[%clk 0:03:02]}  cxd4 {[%clk 0:02:55]} 7. exd4 {[%clk 0:03:03]}  d5 {[%clk 0:02:55]} 8. O-O {[%clk 0:03:04]}  dxc4 {[%clk 0:02:54]} 9. Bxc4 {[%clk 0:03:05]}  b6 {[%clk 0:02:53]} 10. Qb3 {[%clk 0:02:50]}  Nc6 {[%clk 0:02:39]} 11. Bb5 {[%clk 0:02:18]}  Nxd4 {[%clk 0:02:26]} 12. Nxd4 {[%clk 0:01:10]}  Qxd4 {[%clk 0:02:15]} 13. Be3 {[%clk 0:01:11]}  Qh4 {[%clk 0:01:30]} 14. Bc6 {[%clk 0:01:03]}  Bxc3 {[%clk 0:01:12]} 15. Bxa8 {[%clk 0:01:02]}  Ba6 {[%clk 0:01:11]} 16. g3 {[%clk 0:00:52]}  Qg4 {[%clk 0:01:05]} 17. f3 {[%clk 0:00:29]}  Qf5 {[%clk 0:00:59]} 18. Qxc3 {[%clk 0:00:23]}  Rxa8 {[%clk 0:00:56]} 19. Rf2 {[%clk 0:00:21]}  Rd8 {[%clk 0:00:48]} 20. Rc1 {[%clk 0:00:17]}  Nd5 {[%clk 0:00:43]} 21. Qa3 {[%clk 0:00:15]}  Qd3 {[%clk 0:00:37]} 22. Qxd3 {[%clk 0:00:13]}  Bxd3 {[%clk 0:00:35]} 23. Bg5 {[%clk 0:00:11]}  f6 {[%clk 0:00:33]} 24. Bd2 {[%clk 0:00:11]}  Kf7 {[%clk 0:00:30]} 25. Bc3 {[%clk 0:00:09]}  Rc8 {[%clk 0:00:27]} 26. Rd1 {[%clk 0:00:09]}  Bb5 {[%clk 0:00:23]} 27. Bd4 {[%clk 0:00:06]}  h5 {[%clk 0:00:21]} 28. Kg2 {[%clk 0:00:06]}  e5 {[%clk 0:00:18]} 29. Bxb6 {[%clk 0:00:02]}  Nxb6 {[%clk 0:00:17]} 30. b3 {[%clk 0:00:03]}  Rc7 {[%clk 0:00:10]} 31. a4 {[%clk 0:00:03]}  Be8 {[%clk 0:00:09]} 32. Rfd2 {[%clk 0:00:04]}  Rc3 {[%clk 0:00:08]} 33. Rd3 {[%clk 0:00:04]}  Rxd3 {[%clk 0:00:08]} 34. Rxd3 {[%clk 0:00:05]}  Ke6 {[%clk 0:00:08]} 35. f4 {[%clk 0:00:04]}  Nd5 {[%clk 0:00:08]} 36. f5+ {[%clk 0:00:04]}  Kd6 {[%clk 0:00:08]} 37. Kf3 {[%clk 0:00:04]}  Kc5 {[%clk 0:00:08]} 38. Rd1 {[%clk 0:00:04]}  Bc6 {[%clk 0:00:08]} 39. Kf2 {[%clk 0:00:03]}  e4 {[%clk 0:00:07]} 40. h3 {[%clk 0:00:03]}  e3+ {[%clk 0:00:07]} 41. Ke1 {[%clk 0:00:03]}  Nc3 {[%clk 0:00:07]} 42. Rd3 {[%clk 0:00:04]}  Kb4 {[%clk 0:00:07]} 43. Rxe3 {[%clk 0:00:04]}  Kxb3 {[%clk 0:00:07]} 44. Re7 {[%clk 0:00:04]}  Kxa4 {[%clk 0:00:06]} 45. Rxa7+ {[%clk 0:00:04]}  Kb4 {[%clk 0:00:05]} 46. Rxg7 {[%clk 0:00:05]}  Bg2 {[%clk 0:00:05]} 47. h4 {[%clk 0:00:04]}  Bf3 {[%clk 0:00:05]} 48. Kf2 {[%clk 0:00:04]}  Bg4 {[%clk 0:00:05]} 49. Rd7 {[%clk 0:00:04]}  Ne4+ {[%clk 0:00:05]} 50. Ke3 {[%clk 0:00:04]}  Nxg3 {[%clk 0:00:05]} 51. Rd6 {[%clk 0:00:04]}  Nxf5+ {[%clk 0:00:04]} 52. Kf4 {[%clk 0:00:04]}  Nxh4 {[%clk 0:00:05]} 53. Rxf6 {[%clk 0:00:04]}  Kc5 {[%clk 0:00:05]} 54. Kg3 {[%clk 0:00:03]}  Nf5+ {[%clk 0:00:05]} 55. Kf4 {[%clk 0:00:04]}  Nd4 {[%clk 0:00:04]} 56. Rh6 {[%clk 0:00:02]}  Kd5 {[%clk 0:00:04]} 57. Kg5 {[%clk 0:00:02]}  Ke5 {[%clk 0:00:04]} 58. Rxh5 {[%clk 0:00:02]}  Bxh5 {[%clk 0:00:04]} 59. Kxh5 {[%clk 0:00:03]} 1/2-1/2


[Site "https://www.chess.com"]

[Event "Titled Tuesday Blitz September 28 2021"]
[White "Wadsworth, Matthew J"]
[Black "Jobava, Baadur"]
[WhiteFideId "415804"]
[BlackFideId "13601520"]
[WhiteElo "2293"]
[BlackElo "2731"]
[Result "0-1"]
[Round "10"]
[TimeControl "180+1"]
[Date "2021.09.28"]
[WhiteClock "0:00:03"]
[BlackClock "0:00:22"]

1. c4 {[%clk 0:03:00]}  c6 {[%clk 0:02:59]} 2. g3 {[%clk 0:02:58]}  d5 {[%clk 0:03:00]} 3. Nf3 {[%clk 0:02:58]}  Nf6 {[%clk 0:03:01]} 4. Bg2 {[%clk 0:02:56]}  Bf5 {[%clk 0:03:01]} 5. cxd5 {[%clk 0:02:56]}  cxd5 {[%clk 0:03:01]} 6. Qb3 {[%clk 0:02:56]}  Nbd7 {[%clk 0:02:56]} 7. O-O {[%clk 0:02:52]}  e6 {[%clk 0:02:53]} 8. d3 {[%clk 0:02:50]}  Nc5 {[%clk 0:02:51]} 9. Qd1 {[%clk 0:02:43]}  Be7 {[%clk 0:02:47]} 10. Nc3 {[%clk 0:02:42]}  O-O {[%clk 0:02:47]} 11. Bf4 {[%clk 0:02:40]}  h6 {[%clk 0:02:46]} 12. Rc1 {[%clk 0:02:29]}  Rc8 {[%clk 0:02:46]} 13. b4 {[%clk 0:02:24]}  Ncd7 {[%clk 0:02:45]} 14. a3 {[%clk 0:02:24]}  a5 {[%clk 0:02:42]} 15. Qb3 {[%clk 0:01:54]}  axb4 {[%clk 0:02:42]} 16. axb4 {[%clk 0:01:53]}  Qb6 {[%clk 0:02:31]} 17. Na2 {[%clk 0:01:51]}  d4 {[%clk 0:02:10]} 18. Ne5 {[%clk 0:01:33]}  Nxe5 {[%clk 0:02:08]} 19. Bxe5 {[%clk 0:01:33]}  Nd7 {[%clk 0:02:09]} 20. Bf4 {[%clk 0:01:30]}  e5 {[%clk 0:02:09]} 21. Bd2 {[%clk 0:01:29]}  Be6 {[%clk 0:01:55]} 22. Qb2 {[%clk 0:01:27]}  Ra8 {[%clk 0:01:47]} 23. Ra1 {[%clk 0:01:27]}  Nc5 {[%clk 0:01:39]} 24. Nc1 {[%clk 0:01:20]}  Na4 {[%clk 0:01:37]} 25. Qb1 {[%clk 0:01:14]}  Nc3 {[%clk 0:01:34]} 26. Bxc3 {[%clk 0:01:13]}  dxc3 {[%clk 0:01:35]} 27. Rxa8 {[%clk 0:01:11]}  Rxa8 {[%clk 0:01:36]} 28. b5 {[%clk 0:01:03]}  Ba3 {[%clk 0:01:19]} 29. Qa1 {[%clk 0:00:26]}  Qc7 {[%clk 0:00:49]} 30. e3 {[%clk 0:00:20]}  Ra5 {[%clk 0:00:47]} 31. Ne2 {[%clk 0:00:16]}  Bb2 {[%clk 0:00:42]} 32. Qd1 {[%clk 0:00:15]}  Rxb5 {[%clk 0:00:41]} 33. d4 {[%clk 0:00:15]}  Bb3 {[%clk 0:00:38]} 34. Qd3 {[%clk 0:00:14]}  Qc4 {[%clk 0:00:38]} 35. Be4 {[%clk 0:00:13]}  g6 {[%clk 0:00:29]} 36. dxe5 {[%clk 0:00:11]}  Rxe5 {[%clk 0:00:27]} 37. Nd4 {[%clk 0:00:04]}  Kg7 {[%clk 0:00:24]} 38. Re1 {[%clk 0:00:03]}  b5 {[%clk 0:00:23]} 39. Qxc4 {[%clk 0:00:03]}  Bxc4 {[%clk 0:00:22]} 40. Bc2 {[%clk 0:00:03]}  b4 {[%clk 0:00:22]} 41. f4 {[%clk 0:00:03]}  Rd5 {[%clk 0:00:21]} 42. Kf2 {[%clk 0:00:03]}  Rxd4 {[%clk 0:00:21]} 43. exd4 {[%clk 0:00:03]}  b3 {[%clk 0:00:22]} 44. Be4 {[%clk 0:00:03]}  c2 {[%clk 0:00:22]} 0-1


[Site "https://www.chess.com"]

[Event "Titled Tuesday Blitz September 28 2021"]
[White "Yakubboev, Nodirbek"]
[Black "Onyshchuk, Volodymyr"]
[WhiteFideId "14203987"]
[BlackFideId "14114038"]
[WhiteElo "2464"]
[BlackElo "2603"]
[Result "1-0"]
[Round "10"]
[TimeControl "180+1"]
[Date "2021.09.28"]
[WhiteClock "0:00:19"]
[BlackClock "0:00:12"]

1. d4 {[%clk 0:02:35]}  d6 {[%clk 0:02:58]} 2. e4 {[%clk 0:02:35]}  Nf6 {[%clk 0:02:57]} 3. Nc3 {[%clk 0:02:35]}  g6 {[%clk 0:02:58]} 4. f4 {[%clk 0:02:34]}  Bg7 {[%clk 0:02:57]} 5. Nf3 {[%clk 0:02:35]}  O-O {[%clk 0:02:58]} 6. Be3 {[%clk 0:02:35]}  b6 {[%clk 0:02:55]} 7. e5 {[%clk 0:01:33]}  Ng4 {[%clk 0:02:55]} 8. Bg1 {[%clk 0:01:33]}  Bb7 {[%clk 0:02:54]} 9. Qe2 {[%clk 0:01:27]}  c5 {[%clk 0:02:43]} 10. O-O-O {[%clk 0:01:23]}  cxd4 {[%clk 0:02:34]} 11. Nxd4 {[%clk 0:01:21]}  Nh6 {[%clk 0:02:29]} 12. Ne4 {[%clk 0:01:14]}  Nc6 {[%clk 0:02:20]} 13. g4 {[%clk 0:00:57]}  Nxd4 {[%clk 0:02:15]} 14. Bxd4 {[%clk 0:00:58]}  Nxg4 {[%clk 0:02:12]} 15. Bg2 {[%clk 0:00:46]}  Nh6 {[%clk 0:02:11]} 16. exd6 {[%clk 0:00:45]}  Bxd4 {[%clk 0:02:09]} 17. Rxd4 {[%clk 0:00:42]}  Nf5 {[%clk 0:02:09]} 18. Rd2 {[%clk 0:00:40]}  exd6 {[%clk 0:02:08]} 19. Nxd6 {[%clk 0:00:31]}  Nxd6 {[%clk 0:01:52]} 20. Bxb7 {[%clk 0:00:31]}  Rb8 {[%clk 0:01:53]} 21. Bd5 {[%clk 0:00:31]}  Qf6 {[%clk 0:01:50]} 22. Qe5 {[%clk 0:00:30]}  Kg7 {[%clk 0:01:42]} 23. Bb3 {[%clk 0:00:29]}  Qxe5 {[%clk 0:01:33]} 24. fxe5 {[%clk 0:00:30]}  Ne4 {[%clk 0:01:33]} 25. Rd7 {[%clk 0:00:30]}  a5 {[%clk 0:01:23]} 26. Rf1 {[%clk 0:00:29]}  Nc5 {[%clk 0:01:07]} 27. Rdxf7+ {[%clk 0:00:25]}  Rxf7 {[%clk 0:01:07]} 28. Rxf7+ {[%clk 0:00:25]}  Kh6 {[%clk 0:01:07]} 29. e6 {[%clk 0:00:21]}  Re8 {[%clk 0:00:23]} 30. e7 {[%clk 0:00:21]}  Nxb3+ {[%clk 0:00:20]} 31. axb3 {[%clk 0:00:20]}  Kg5 {[%clk 0:00:20]} 32. Kd2 {[%clk 0:00:20]}  h5 {[%clk 0:00:19]} 33. Ke3 {[%clk 0:00:20]}  Kg4 {[%clk 0:00:19]} 34. Ke4 {[%clk 0:00:19]}  g5 {[%clk 0:00:18]} 35. Rg7 {[%clk 0:00:19]}  h4 {[%clk 0:00:17]} 36. Ke5 {[%clk 0:00:19]}  Kh3 {[%clk 0:00:16]} 37. Kd6 {[%clk 0:00:18]}  g4 {[%clk 0:00:16]} 38. Kd7 {[%clk 0:00:18]}  Rh8 {[%clk 0:00:12]} 39. e8=Q {[%clk 0:00:18]}  Rxe8 {[%clk 0:00:12]} 40. Kxe8 {[%clk 0:00:19]} 1-0


[Site "https://www.chess.com"]

[Event "Titled Tuesday Blitz September 28 2021"]
[White "Yeletsky, Ivan"]
[Black "Vlassov, Nikolai"]
[WhiteFideId "24180327"]
[BlackFideId "4103360"]
[WhiteElo "2344"]
[BlackElo "2407"]
[Result "1-0"]
[Round "10"]
[TimeControl "180+1"]
[Date "2021.09.28"]
[WhiteClock "0:00:57"]
[BlackClock "0:01:12"]

1. e4 {[%clk 0:03:00]}  Nc6 {[%clk 0:02:59]} 2. Bb5 {[%clk 0:02:57]}  Nf6 {[%clk 0:02:58]} 3. d3 {[%clk 0:02:56]}  e5 {[%clk 0:02:58]} 4. Bxc6 {[%clk 0:02:52]}  dxc6 {[%clk 0:02:58]} 5. Nc3 {[%clk 0:02:51]}  Bd6 {[%clk 0:02:57]} 6. Nge2 {[%clk 0:02:48]}  O-O {[%clk 0:02:57]} 7. O-O {[%clk 0:02:48]}  Nd7 {[%clk 0:02:57]} 8. f4 {[%clk 0:02:43]}  f6 {[%clk 0:02:38]} 9. f5 {[%clk 0:02:35]}  c5 {[%clk 0:02:32]} 10. b3 {[%clk 0:02:29]}  Nb8 {[%clk 0:02:32]} 11. g4 {[%clk 0:02:01]}  Nc6 {[%clk 0:02:31]} 12. Ng3 {[%clk 0:01:57]}  Bd7 {[%clk 0:02:17]} 13. h4 {[%clk 0:01:49]}  Nd4 {[%clk 0:02:07]} 14. Kh2 {[%clk 0:01:49]}  b5 {[%clk 0:02:02]} 15. Rg1 {[%clk 0:01:37]}  c4 {[%clk 0:01:57]} 16. g5 {[%clk 0:01:37]}  Kh8 {[%clk 0:01:40]} 17. g6 {[%clk 0:01:19]}  h6 {[%clk 0:01:31]} 18. Qh5 {[%clk 0:01:01]}  Kg8 {[%clk 0:01:31]} 19. Bxh6 {[%clk 0:01:01]}  gxh6 {[%clk 0:01:31]} 20. Qxh6 {[%clk 0:00:59]}  Qe7 {[%clk 0:01:31]} 21. g7 {[%clk 0:00:59]}  Nf3+ {[%clk 0:01:26]} 22. Kh1 {[%clk 0:00:59]}  Qxg7 {[%clk 0:01:20]} 23. Nh5 {[%clk 0:00:59]}  Qxg1+ {[%clk 0:01:15]} 24. Rxg1+ {[%clk 0:00:58]}  Kf7 {[%clk 0:01:14]} 25. Rg7+ {[%clk 0:00:58]}  Ke8 {[%clk 0:01:14]} 26. Nxf6+ {[%clk 0:00:57]}  Rxf6 {[%clk 0:01:12]} 27. Qxf6 {[%clk 0:00:57]} 1-0


[Site "https://www.chess.com"]

[Event "Titled Tuesday Blitz September 28 2021"]
[White "Zhigalko, Sergei"]
[Black "Quintiliano Pinto, Renato R."]
[WhiteFideId "13502956"]
[BlackFideId "2117568"]
[WhiteElo "2662"]
[BlackElo "2439"]
[Result "1-0"]
[Round "10"]
[TimeControl "180+1"]
[Date "2021.09.28"]
[WhiteClock "0:00:04"]
[BlackClock "0:00:11"]

1. e4 {[%clk 0:03:00]}  c5 {[%clk 0:02:59]} 2. Nf3 {[%clk 0:03:01]}  d6 {[%clk 0:02:59]} 3. d4 {[%clk 0:03:01]}  cxd4 {[%clk 0:03:00]} 4. Qxd4 {[%clk 0:03:01]}  Nc6 {[%clk 0:03:00]} 5. Bb5 {[%clk 0:03:01]}  Bd7 {[%clk 0:03:01]} 6. Bxc6 {[%clk 0:03:02]}  Bxc6 {[%clk 0:03:02]} 7. Nc3 {[%clk 0:03:02]}  Nf6 {[%clk 0:03:02]} 8. Bg5 {[%clk 0:03:02]}  e6 {[%clk 0:03:02]} 9. O-O-O {[%clk 0:03:02]}  Be7 {[%clk 0:03:03]} 10. Rhe1 {[%clk 0:03:03]}  O-O {[%clk 0:03:03]} 11. Kb1 {[%clk 0:03:03]}  Re8 {[%clk 0:02:40]} 12. Qd3 {[%clk 0:02:54]}  d5 {[%clk 0:02:06]} 13. e5 {[%clk 0:02:21]}  Ne4 {[%clk 0:01:40]} 14. Bxe7 {[%clk 0:02:22]}  Qxe7 {[%clk 0:01:36]} 15. Qe3 {[%clk 0:02:22]}  Nxc3+ {[%clk 0:01:27]} 16. Qxc3 {[%clk 0:02:22]}  Rec8 {[%clk 0:01:28]} 17. Nd4 {[%clk 0:02:21]}  Bd7 {[%clk 0:01:23]} 18. Qe3 {[%clk 0:02:13]}  Rc4 {[%clk 0:01:22]} 19. f4 {[%clk 0:02:10]}  Rac8 {[%clk 0:01:21]} 20. g4 {[%clk 0:02:08]}  g6 {[%clk 0:00:32]} 21. Rd2 {[%clk 0:02:00]}  Qh4 {[%clk 0:00:28]} 22. Rg1 {[%clk 0:01:57]}  Re8 {[%clk 0:00:24]} 23. b3 {[%clk 0:01:47]}  Rc7 {[%clk 0:00:20]} 24. Rg3 {[%clk 0:01:07]}  Qe7 {[%clk 0:00:19]} 25. Re2 {[%clk 0:01:00]}  a6 {[%clk 0:00:15]} 26. f5 {[%clk 0:00:58]}  exf5 {[%clk 0:00:15]} 27. gxf5 {[%clk 0:00:58]}  Bb5 {[%clk 0:00:16]} 28. f6 {[%clk 0:00:55]}  Qc5 {[%clk 0:00:14]} 29. Rh3 {[%clk 0:00:41]}  Qf8 {[%clk 0:00:14]} 30. Rf2 {[%clk 0:00:35]}  Bd7 {[%clk 0:00:14]} 31. Rh4 {[%clk 0:00:26]}  Rec8 {[%clk 0:00:11]} 32. Rf3 {[%clk 0:00:18]}  Rc3 {[%clk 0:00:10]} 33. Qxc3 {[%clk 0:00:18]}  Rxc3 {[%clk 0:00:11]} 34. Rxc3 {[%clk 0:00:19]}  Qb4 {[%clk 0:00:10]} 35. Kb2 {[%clk 0:00:14]}  Qf8 {[%clk 0:00:10]} 36. Rc7 {[%clk 0:00:13]}  Qd8 {[%clk 0:00:11]} 37. Rxb7 {[%clk 0:00:13]}  h5 {[%clk 0:00:10]} 38. Rf4 {[%clk 0:00:12]}  Bg4 {[%clk 0:00:10]} 39. e6 {[%clk 0:00:10]}  Bxe6 {[%clk 0:00:09]} 40. Nxe6 {[%clk 0:00:08]}  fxe6 {[%clk 0:00:10]} 41. Rg7+ {[%clk 0:00:05]}  Kh8 {[%clk 0:00:10]} 42. Rxg6 {[%clk 0:00:05]}  Qd6 {[%clk 0:00:10]} 43. Rf1 {[%clk 0:00:04]}  Qe5+ {[%clk 0:00:11]} 44. Kb1 {[%clk 0:00:04]}  Qe4 {[%clk 0:00:11]} 45. Rgg1 {[%clk 0:00:04]} 1-0


[Site "https://www.chess.com"]

[Event "Titled Tuesday Blitz September 28 2021"]
[White "Zubov, Alexander"]
[Black "Aitbayev, Aslan"]
[WhiteFideId "14109409"]
[BlackFideId "13704613"]
[WhiteElo "2740"]
[BlackElo "2417"]
[Result "1-0"]
[Round "10"]
[TimeControl "180+1"]
[Date "2021.09.28"]
[WhiteClock "0:00:06"]
[BlackClock "0:00:02"]

1. d4 {[%clk 0:03:00]}  d5 {[%clk 0:02:59]} 2. c4 {[%clk 0:03:00]}  c6 {[%clk 0:02:59]} 3. Nf3 {[%clk 0:03:00]}  Nf6 {[%clk 0:03:00]} 4. Nc3 {[%clk 0:03:00]}  e6 {[%clk 0:03:00]} 5. Bg5 {[%clk 0:02:59]}  Nbd7 {[%clk 0:03:00]} 6. e3 {[%clk 0:02:58]}  Qa5 {[%clk 0:03:00]} 7. cxd5 {[%clk 0:02:57]}  Nxd5 {[%clk 0:02:58]} 8. Qd2 {[%clk 0:02:57]}  Bb4 {[%clk 0:02:56]} 9. Rc1 {[%clk 0:02:57]}  b6 {[%clk 0:02:48]} 10. a3 {[%clk 0:02:55]}  Bxc3 {[%clk 0:02:47]} 11. bxc3 {[%clk 0:02:55]}  h6 {[%clk 0:02:43]} 12. Bh4 {[%clk 0:02:54]}  c5 {[%clk 0:02:43]} 13. Bd3 {[%clk 0:02:38]}  Ba6 {[%clk 0:02:25]} 14. c4 {[%clk 0:02:25]}  Qxd2+ {[%clk 0:02:25]} 15. Nxd2 {[%clk 0:02:25]}  Ne7 {[%clk 0:02:24]} 16. f3 {[%clk 0:02:16]}  Nc6 {[%clk 0:01:57]} 17. Nb3 {[%clk 0:02:12]}  Rc8 {[%clk 0:01:55]} 18. Ke2 {[%clk 0:02:01]}  cxd4 {[%clk 0:01:22]} 19. exd4 {[%clk 0:02:01]}  e5 {[%clk 0:01:23]} 20. d5 {[%clk 0:01:52]}  Nd8 {[%clk 0:01:23]} 21. Kd2 {[%clk 0:01:28]}  Nb7 {[%clk 0:01:19]} 22. Rhe1 {[%clk 0:01:26]}  f6 {[%clk 0:01:04]} 23. Bf2 {[%clk 0:00:28]}  Ndc5 {[%clk 0:00:52]} 24. Nxc5 {[%clk 0:00:27]}  Nxc5 {[%clk 0:00:53]} 25. Bxc5 {[%clk 0:00:27]}  Rxc5 {[%clk 0:00:53]} 26. f4 {[%clk 0:00:27]}  O-O {[%clk 0:00:30]} 27. fxe5 {[%clk 0:00:27]}  fxe5 {[%clk 0:00:31]} 28. Rxe5 {[%clk 0:00:27]}  Rf2+ {[%clk 0:00:21]} 29. Re2 {[%clk 0:00:21]}  Rxe2+ {[%clk 0:00:20]} 30. Bxe2 {[%clk 0:00:17]}  Kf8 {[%clk 0:00:20]} 31. Ke3 {[%clk 0:00:16]}  Ke7 {[%clk 0:00:19]} 32. Kd4 {[%clk 0:00:15]}  Ra5 {[%clk 0:00:17]} 33. Rc3 {[%clk 0:00:15]}  Bc8 {[%clk 0:00:15]} 34. h4 {[%clk 0:00:11]}  Bf5 {[%clk 0:00:13]} 35. Re3+ {[%clk 0:00:10]}  Kd6 {[%clk 0:00:12]} 36. h5 {[%clk 0:00:11]}  Rc5 {[%clk 0:00:10]} 37. Rg3 {[%clk 0:00:11]}  Rc7 {[%clk 0:00:10]} 38. Bg4 {[%clk 0:00:07]}  Bb1 {[%clk 0:00:04]} 39. Be2 {[%clk 0:00:02]}  Re7 {[%clk 0:00:02]} 40. Bd3 {[%clk 0:00:02]}  Bxd3 {[%clk 0:00:01]} 41. Rxd3 {[%clk 0:00:03]}  Re5 {[%clk 0:00:01]} 42. Rg3 {[%clk 0:00:03]}  Rxh5 {[%clk 0:00:01]} 43. Rg6+ {[%clk 0:00:04]}  Kc7 {[%clk 0:00:01]} 44. Rxg7+ {[%clk 0:00:05]}  Kd6 {[%clk 0:00:02]} 45. Rg6+ {[%clk 0:00:05]}  Kc7 {[%clk 0:00:02]} 46. g4 {[%clk 0:00:05]}  Rh3 {[%clk 0:00:02]} 47. Rg7+ {[%clk 0:00:05]}  Kd6 {[%clk 0:00:02]} 48. Rg6+ {[%clk 0:00:06]}  Kc7 {[%clk 0:00:02]} 49. a4 {[%clk 0:00:06]} 1-0


[Site "https://www.chess.com"]

[Event "Titled Tuesday Blitz September 28 2021"]
[White "ketster"]
[Black "Bach, Ngoc Thuy Duong"]
[BlackFideId "12408956"]
[WhiteElo "2558"]
[BlackElo "1896"]
[Result "0-1"]
[Round "10"]
[TimeControl "180+1"]
[Date "2021.09.28"]
[WhiteClock "0:00:02"]
[BlackClock "0:00:05"]

1. d4 {[%clk 0:02:56]}  d5 {[%clk 0:02:59]} 2. c4 {[%clk 0:02:55]}  e6 {[%clk 0:02:59]} 3. Nc3 {[%clk 0:02:55]}  c6 {[%clk 0:02:59]} 4. Nf3 {[%clk 0:02:54]}  dxc4 {[%clk 0:02:59]} 5. e4 {[%clk 0:02:49]}  b5 {[%clk 0:02:58]} 6. a4 {[%clk 0:02:48]}  Bb4 {[%clk 0:02:57]} 7. Bg5 {[%clk 0:02:31]}  f6 {[%clk 0:02:32]} 8. Bd2 {[%clk 0:02:29]}  a5 {[%clk 0:02:29]} 9. axb5 {[%clk 0:01:46]}  Bxc3 {[%clk 0:02:28]} 10. Bxc3 {[%clk 0:01:43]}  cxb5 {[%clk 0:02:28]} 11. Bd2 {[%clk 0:01:42]}  Bb7 {[%clk 0:02:14]} 12. Qb1 {[%clk 0:01:38]}  Nc6 {[%clk 0:02:10]} 13. b3 {[%clk 0:01:14]}  Nxd4 {[%clk 0:02:03]} 14. bxc4 {[%clk 0:01:14]}  b4 {[%clk 0:01:50]} 15. Be3 {[%clk 0:01:02]}  e5 {[%clk 0:01:22]} 16. Bxd4 {[%clk 0:00:36]}  exd4 {[%clk 0:01:23]} 17. Qd1 {[%clk 0:00:27]}  Ne7 {[%clk 0:00:48]} 18. Nxd4 {[%clk 0:00:19]}  Bxe4 {[%clk 0:00:43]} 19. Qh5+ {[%clk 0:00:15]}  Bg6 {[%clk 0:00:35]} 20. Qb5+ {[%clk 0:00:14]}  Kf7 {[%clk 0:00:34]} 21. Rd1 {[%clk 0:00:13]}  Qb8 {[%clk 0:00:31]} 22. Be2 {[%clk 0:00:09]}  Rd8 {[%clk 0:00:18]} 23. O-O {[%clk 0:00:09]}  Qe5 {[%clk 0:00:16]} 24. Nf3 {[%clk 0:00:06]}  Qxb5 {[%clk 0:00:15]} 25. cxb5 {[%clk 0:00:06]}  Kf8 {[%clk 0:00:11]} 26. Nd4 {[%clk 0:00:06]}  Bf7 {[%clk 0:00:11]} 27. Bf3 {[%clk 0:00:05]}  Rab8 {[%clk 0:00:09]} 28. Nc6 {[%clk 0:00:05]}  Nxc6 {[%clk 0:00:09]} 29. Bxc6 {[%clk 0:00:05]}  b3 {[%clk 0:00:07]} 30. Ra1 {[%clk 0:00:03]}  b2 {[%clk 0:00:07]} 31. Rab1 {[%clk 0:00:03]}  Bc4 {[%clk 0:00:05]} 32. Rfe1 {[%clk 0:00:02]}  Bxb5 {[%clk 0:00:06]} 33. Be4 {[%clk 0:00:02]}  Bc4 {[%clk 0:00:06]} 34. Bf5 {[%clk 0:00:02]}  a4 {[%clk 0:00:06]} 35. Re3 {[%clk 0:00:02]}  Ba2 {[%clk 0:00:05]} 36. Ra3 {[%clk 0:00:02]}  Bxb1 {[%clk 0:00:05]} 37. Bxb1 {[%clk 0:00:02]}  Rd1# {[%clk 0:00:05]} 0-1


[Site "https://www.chess.com"]

[Event "Titled Tuesday Blitz September 28 2021"]
[White "Aitbayev, Aslan"]
[Black "Weetik, Vjacheslav"]
[WhiteFideId "13704613"]
[BlackFideId "4153472"]
[WhiteElo "2417"]
[BlackElo "2469"]
[Result "1-0"]
[Round "11"]
[TimeControl "180+1"]
[Date "2021.09.28"]
[WhiteClock "0:01:29"]
[BlackClock "0:00:14"]

1. e4 {[%clk 0:03:00]}  c6 {[%clk 0:02:40]} 2. d4 {[%clk 0:03:00]}  d5 {[%clk 0:02:40]} 3. e5 {[%clk 0:03:01]}  Bf5 {[%clk 0:02:40]} 4. Nd2 {[%clk 0:03:01]}  e6 {[%clk 0:02:39]} 5. Nb3 {[%clk 0:03:02]}  Nd7 {[%clk 0:02:40]} 6. Nf3 {[%clk 0:03:02]}  h6 {[%clk 0:02:39]} 7. Be2 {[%clk 0:03:02]}  Ne7 {[%clk 0:02:38]} 8. O-O {[%clk 0:03:02]}  Qc7 {[%clk 0:02:38]} 9. Bd2 {[%clk 0:02:59]}  g5 {[%clk 0:02:37]} 10. a4 {[%clk 0:02:57]}  Bg7 {[%clk 0:02:36]} 11. Bb4 {[%clk 0:02:53]}  Ng6 {[%clk 0:02:11]} 12. Bd6 {[%clk 0:02:50]}  Qd8 {[%clk 0:02:11]} 13. a5 {[%clk 0:02:49]}  Nf4 {[%clk 0:02:05]} 14. a6 {[%clk 0:02:46]}  b6 {[%clk 0:02:03]} 15. Ne1 {[%clk 0:02:36]}  Bf8 {[%clk 0:02:02]} 16. Bxf8 {[%clk 0:02:33]}  Kxf8 {[%clk 0:02:02]} 17. Bg4 {[%clk 0:02:26]}  Bxg4 {[%clk 0:01:51]} 18. Qxg4 {[%clk 0:02:26]}  h5 {[%clk 0:01:40]} 19. Qd1 {[%clk 0:02:24]}  c5 {[%clk 0:01:38]} 20. Nd3 {[%clk 0:02:01]}  Nxd3 {[%clk 0:01:25]} 21. cxd3 {[%clk 0:02:01]}  cxd4 {[%clk 0:01:20]} 22. Re1 {[%clk 0:02:01]}  Kg7 {[%clk 0:01:03]} 23. Nxd4 {[%clk 0:01:59]}  Nf8 {[%clk 0:01:02]} 24. Rc1 {[%clk 0:01:53]}  Ng6 {[%clk 0:01:00]} 25. Nc6 {[%clk 0:01:50]}  Qd7 {[%clk 0:00:58]} 26. Qf3 {[%clk 0:01:51]}  Rac8 {[%clk 0:00:45]} 27. Qf6+ {[%clk 0:01:47]}  Kh7 {[%clk 0:00:44]} 28. Nd4 {[%clk 0:01:46]}  Qe7 {[%clk 0:00:39]} 29. Qf3 {[%clk 0:01:41]}  g4 {[%clk 0:00:35]} 30. Qe3 {[%clk 0:01:40]}  Rc5 {[%clk 0:00:24]} 31. b4 {[%clk 0:01:32]}  Rxc1 {[%clk 0:00:22]} 32. Rxc1 {[%clk 0:01:33]}  Qxb4 {[%clk 0:00:18]} 33. h3 {[%clk 0:01:29]}  gxh3 {[%clk 0:00:14]} 34. Rc7 {[%clk 0:01:29]} 1-0


[Site "https://www.chess.com"]